{"text_format":"1","workbook":"xlsx","n_sheets":7,"sheets":["Capa","Dados Gerais","Carga","Docs e Informações","Confiab","Backup","Planilha1"],"not_rendered":{"charts":0,"images":14,"macros":1,"external_links":0,"defined_names":17,"comments":1,"pivot_tables":0},"unopened":[],"bounds":{"document_bytes":16777216,"sheet_cells":100000,"rows_first":2000,"rows_last":500,"rows_between":2000,"halvings":0,"cell_chars":16384,"cell_head_chars":4096},"cells_cut":0,"cells_raw":0,"read":"whole","date_system":"1900"}

{"sheet":"Capa","index":0,"n_rows":35,"n_cols":11,"rows_kept":35,"cut":false,"hidden":false,"merged":[[35,8,35,9],[33,7,34,7],[33,8,34,9],[33,10,34,10],[1,5,1,8],[7,2,10,8],[12,2,15,8],[17,2,18,8],[20,2,21,6],[34,2,34,6]]}
[]
[null,null,null,null,null,"Solicitação de Orçamento de Conexão"]
[]
[]
[null,null,"Olá,"]
[null,null,"Seja bem-vindo(a)!"]
[]
[null,null,"Esse é um formulário desenvolvido pela NEOENERGIA, para solicitar o orçamento de conexão, de forma conjunta ou independente à apresentação do projeto das instalações internas (projeto particular), com interligação executada pela distribuidora. \nNota. Orçamentos MMGD,  solicitar pelo Portal GD - Acessante."]
[]
[]
[]
[]
[null,null,"Navegue pelo formulário, seguindo as orientações e preenchendo as informações solicitadas, ao final, ser-lhe-á apresentado um resumo das informações."]
[]
[]
[]
[]
[null,null,"O processo é simples e rápido!"]
[]
[]
[null,null,"Pronto(a) para iniciar o preenchimento?"]
[]
[]
[]
[]
[]
[]
[]
[]
[]
[]
[]
[]
[null,null,null,null,null,null,null,"Created by:","Danilo Santos",null,"Ver. 1.0"]
[null,null,"*Nota: Compatível com Excel 2013 e versões superiores"]

{"sheet":"Dados Gerais","index":1,"n_rows":73,"n_cols":15,"rows_kept":73,"cut":false,"hidden":false,"merged":[[24,1,24,4],[24,9,24,12],[24,13,24,15],[24,5,24,8],[10,6,10,7],[10,8,10,15],[3,1,3,15],[15,1,15,4],[15,10,15,13],[15,6,15,7],[15,8,15,9],[15,14,15,15],[23,1,23,4],[23,5,23,10],[23,11,23,13],[23,14,23,15],[19,1,19,4],[19,5,19,15],[20,1,20,4],[20,5,20,7],[20,8,20,9],[20,10,20,15],[17,1,17,15],[18,1,18,4],[32,1,32,15],[72,1,72,4],[71,1,71,4],[71,5,71,15],[72,5,72,15],[25,1,25,4],[25,5,25,15],[9,1,9,4],[9,5,9,15],[26,1,26,4],[26,5,26,15],[11,1,11,4],[11,5,11,15],[10,1,10,4],[40,1,40,2],[40,3,40,7],[39,8,39,15],[12,1,12,4],[12,8,12,12],[12,13,12,15],[13,1,13,4],[12,5,12,7],[28,6,28,7],[28,8,28,15],[36,5,36,7],[36,8,36,10],[36,11,36,15],[37,1,37,4],[37,5,37,7],[37,8,37,10],[37,11,37,15],[34,1,34,4],[34,5,34,15],[35,1,35,4],[35,5,35,7],[35,8,35,10],[35,11,35,15],[21,1,21,4],[21,5,21,7],[21,8,21,9],[21,10,21,15],[22,1,22,4],[22,5,22,13],[45,1,45,15],[46,1,66,7],[46,8,46,15],[66,8,70,15],[67,1,70,7],[38,1,38,15],[39,1,39,2],[39,3,39,7],[29,6,29,7],[29,8,29,15],[30,1,31,5],[30,6,30,7],[30,8,30,15],[31,6,31,7],[31,8,31,15],[41,1,41,15],[42,1,44,15],[36,1,36,4],[1,5,1,15],[2,1,2,15],[4,1,4,15],[5,1,7,4],[5,5,7,15],[8,1,8,4],[8,5,8,15],[13,5,13,7],[40,8,40,15],[18,5,18,12],[18,14,18,15],[16,1,16,9],[16,10,16,15],[14,1,14,4],[14,5,14,7],[14,8,14,12],[14,13,14,15],[13,8,13,12],[13,13,13,15],[33,1,33,4],[33,5,33,15],[27,1,29,5],[27,6,27,7],[27,8,27,15]]}
[]
[null,null,null,null,null,"Solicitação de Orçamento de Conexão"]
[]
[null,{"$f":"IFERROR(IF(AND(F15<=140,K17<=150,F25=\"Urbano\"),\"Artigo 90\",\"\"),\"\")","v":""}]
[null,"Dados Básicos do Serviço"]
[null,"Descrição do Serviço :"]
[]
[]
[null,"Tipo de Atendimento:"]
[null,"Situação da Unidade:"]
[null,"Orçamento e contrato por meios digitais ",null,null,null,null,"E-mail para envio do orçamento"]
[null,"Contratos (se houver)"]
[null,"Grupo Tarifário",null,null,null,null,null,null,"Tipo de Conexão (fases)"]
[null,"Tensão de Conexão",null,null,null,null,null,null,"Ramal de Conexão"]
[null,"Demanda Total Calculada (kVA) ou Contratada  (KW)",null,null,null,null,null,null,"Cartal Total (kW)"]
[null,"Potência Total de Transformação  em KVA ",null,null,null,null,"Fator de Potência %",null,null,null,"Ponto de Entrega (Poste)"]
[null,"Informe a distância do ponto de Entrega até o poste com rede primária (média tensão) mais próximo (metros)"]
[null,"Dados da Unidade Consumidora"]
[null,"Responsável Pela U.C.",null,null,null,null,null,null,null,null,null,null,null,"UC:"]
[null,"E-mail"]
[null,"RG:",null,null,null,null,null,null,"CPF/CNPJ:"]
[null,"Telefone fixo",null,null,null,null,null,null,"Celular"]
[null,"Endereço",null,null,null,null,null,null,null,null,null,null,null,null,"Nº."]
[null,"Município/Localidade",null,null,null,null,null,null,null,null,null,"UF"]
[null,"Localização",null,null,null,null,null,null,null,"CEP"]
[null,"Atividade Desenvolvida"]
[null,"Benefício Tarifário:"]
[null,"Coordenada do Ponto de entrega\n(UTM)",null,null,null,null,"X "]
[null,null,null,null,null,null,"Y "]
[null,null,null,null,null,null,"Fuso"]
[null,"Coordenada Latitude e Longitude do Ponto de Entrega:",null,null,null,null,"Latitude"]
[null,null,null,null,null,null,"Longitude"]
[null,"Dados do Responsável Técnico/Se houver"]
[null,"Responsável Técnico:"]
[null,"E-mail"]
[null,"Telefone fixo",null,null,null,null,null,null,"Celular"]
[null,"Conselho de Classe:",null,null,null,null,null,null,"Nº CREA/CFT/..."]
[null,"Formação",null,null,null,null,null,null,"Nº da ART/TRT/..."]
[null,"Referências Elétricas - Conbiabilidades (vizinhas ou mais próximas do ponto de conexão)"]
[null,"Referência 1"]
[null,"Referência 2"]
[null,"Observações/Comentários adicionais"]
[]
[]
[]
[null,"Declaração e Assinatura"]
[null,"Declaro verdadeiras todas as inforamções prestadas nesse documento.",null,null,null,null,null,null,"Assinatura do Responsável Pela UC"]
[]
[]
[]
[]
[]
[]
[]
[]
[]
[]
[]
[]
[]
[]
[]
[]
[]
[]
[]
[]
[null,"_________________/_____/_____/_____"]
[]
[]
[]
[null,"Normas Técnicas",null,null,null,"https://www.neoenergia.com/web/sp/normas-tecnicas"]
[null,"Apresentação do Projeto",null,null,null,"https://agencia.neoenergiaelektro.com.br/login.aspx"]

{"sheet":"Carga","index":2,"n_rows":52,"n_cols":11,"rows_kept":52,"cut":false,"hidden":false,"merged":[[28,4,28,7],[22,2,22,3],[19,4,19,7],[20,4,20,7],[1,6,1,10],[4,2,5,10],[6,4,6,7],[6,2,6,3],[12,2,12,3],[13,2,13,3],[14,2,14,3],[15,2,15,3],[12,4,12,7],[7,2,7,3],[8,2,8,3],[9,2,9,3],[10,2,10,3],[11,2,11,3],[13,4,13,7],[14,4,14,7],[15,4,15,7],[32,2,32,3],[33,2,33,3],[16,2,16,3],[17,2,17,3],[18,2,18,3],[19,2,19,3],[20,2,20,3],[29,2,29,3],[28,2,28,3],[21,2,21,3],[25,2,25,3],[26,2,26,3],[27,2,27,3],[46,2,46,3],[7,4,7,7],[8,4,8,7],[9,4,9,7],[10,4,10,7],[11,4,11,7],[36,2,36,3],[37,2,37,3],[38,2,38,3],[39,2,39,3],[40,2,40,3],[41,2,41,3],[30,2,30,3],[31,2,31,3],[23,2,23,3],[24,2,24,3],[42,2,42,3],[43,2,43,3],[44,2,44,3],[45,2,45,3],[34,2,34,3],[35,2,35,3],[16,4,16,7],[17,4,17,7],[34,4,34,7],[21,4,21,7],[22,4,22,7],[23,4,23,7],[24,4,24,7],[25,4,25,7],[26,4,26,7],[29,4,29,7],[30,4,30,7],[31,4,31,7],[32,4,32,7],[33,4,33,7],[18,4,18,7],[27,4,27,7],[46,4,46,7],[35,4,35,7],[36,4,36,7],[37,4,37,7],[38,4,38,7],[39,4,39,7],[40,4,40,7],[41,4,41,7],[42,4,42,7],[43,4,43,7],[44,4,44,7],[45,4,45,7],[47,2,47,3],[48,2,48,3],[47,4,47,7],[48,4,48,7],[51,2,52,10]]}
[]
[null,null,null,null,null,null,"SOLICITAÇÃO DE ORÇAMENTO DE CONEXÃO"]
[]
[]
[null,null,"Declaração de Carga"]
[]
[null,null,"Qtde",null,"Descrição do Equipamento/Aparelho/Motor, etc.",null,null,null,"Qtde de Fases","Pot. Unitária (W)","Pot. Total (W)"]
[null,null,null,null,null,null,null,null,null,null,{"$f":"C8*J8","v":0}]
[null,null,null,null,null,null,null,null,null,null,{"$f":"C9*J9","v":0}]
[null,null,null,null,null,null,null,null,null,null,0]
[null,null,null,null,null,null,null,null,null,null,0]
[null,null,null,null,null,null,null,null,null,null,0]
[null,null,null,null,null,null,null,null,null,null,0]
[null,null,null,null,null,null,null,null,null,null,0]
[null,null,null,null,null,null,null,null,null,null,0]
[null,null,null,null,null,null,null,null,null,null,0]
[null,null,null,null,null,null,null,null,null,null,0]
[null,null,null,null,null,null,null,null,null,null,0]
[null,null,null,null,null,null,null,null,null,null,0]
[null,null,null,null,null,null,null,null,null,null,0]
[null,null,null,null,null,null,null,null,null,null,0]
[null,null,null,null,null,null,null,null,null,null,0]
[null,null,null,null,null,null,null,null,null,null,0]
[null,null,null,null,null,null,null,null,null,null,0]
[null,null,null,null,null,null,null,null,null,null,0]
[null,null,null,null,null,null,null,null,null,null,0]
[null,null,null,null,null,null,null,null,null,null,0]
[null,null,null,null,null,null,null,null,null,null,0]
[null,null,null,null,null,null,null,null,null,null,0]
[null,null,null,null,null,null,null,null,null,null,0]
[null,null,null,null,null,null,null,null,null,null,0]
[null,null,null,null,null,null,null,null,null,null,0]
[null,null,null,null,null,null,null,null,null,null,0]
[null,null,null,null,null,null,null,null,null,null,0]
[null,null,null,null,null,null,null,null,null,null,0]
[null,null,null,null,null,null,null,null,null,null,0]
[null,null,null,null,null,null,null,null,null,null,0]
[null,null,null,null,null,null,null,null,null,null,0]
[null,null,null,null,null,null,null,null,null,null,0]
[null,null,null,null,null,null,null,null,null,null,0]
[null,null,null,null,null,null,null,null,null,null,0]
[null,null,null,null,null,null,null,null,null,null,0]
[null,null,null,null,null,null,null,null,null,null,0]
[null,null,null,null,null,null,null,null,null,null,0]
[null,null,null,null,null,null,null,null,null,null,0]
[null,null,null,null,null,null,null,null,null,null,0]
[null,null,null,null,null,null,null,null,null,null,0]
[null,null,null,null,null,null,null,null,null,null,0]
[null,null,null,null,null,null,null,null,null,null,0]
[null,null,null,null,null,null,null,null,null,"Total",{"$f":"SUM(K8:K49)","v":0}]
[]
[null,null,"Caso as linhas forem insuficientes para declaração de carga, enviar em documento anexo ao processo, no formato \"Doc\" ou \"Pdf\", com o nome \"Declaração de Carga\"."]

{"sheet":"Docs e Informações","index":3,"n_rows":36,"n_cols":6,"rows_kept":36,"cut":false,"hidden":false,"merged":[[3,1,3,18],[2,1,2,18],[1,5,1,18],[16,2,16,18],[17,2,17,18],[4,2,4,18],[5,2,5,18],[7,2,7,18],[8,2,8,18],[9,2,9,18],[10,2,10,18],[11,2,11,18],[12,2,12,18],[13,2,13,18],[14,2,14,18],[15,2,15,18],[6,2,6,18],[34,14,34,18],[22,2,22,18],[23,1,23,18],[18,2,18,18],[19,2,19,18],[20,2,20,18],[21,2,21,18],[29,14,29,18],[30,14,30,18],[31,14,31,18],[32,14,32,18],[33,14,33,18],[35,1,36,13],[35,14,36,18],[24,1,24,13],[25,14,26,18],[24,14,24,18],[27,14,27,18],[28,14,28,18],[25,1,26,13],[27,1,27,13],[29,1,29,13],[28,1,28,13],[30,1,30,13],[31,1,31,13],[32,1,32,13],[33,1,33,13],[34,1,34,13]]}
[]
[null,null,null,null,null,"Solicitação de Orçamento de Conexão"]
[]
[null,"Documentos Mnimos - Anexar ao Pedido de Orçamento de Conexão, quando aplicável"]
[null,null,"Formulário: DIS-FRO-004 para Ligação Nova ou Religação (Caso Grupo A ou Grupo B Optante)"]
[null,null,"Formulário: DIS-FRO-005  para Aumento de Demanda e inserção de novas cargas para Alteração de Carga (Caso Grupo A ou Grupo B Optante)"]
[null,null,"Carta de opção faturamento Grupo “B”, quando for opção do cliente (Para Grupo B Optante)"]
[null,null,"Cópia do Contrato Social da empresa e/ou última alteração contratual (Pessoa Jurídica)"]
[null,null,"Cópia do Estatuto Social e Ata de Assembleia que elegeu a diretoria atual (Pessoa Jurídica)"]
[null,null,"Cópia da Procuração (caso se aplique)"]
[null,null,"Cópia da Declaração Individual/Empresarial para Pessoa Física com CNPJ"]
[null,null,"Cópia do CPF e RG para pessoa Física"]
[null,null,"Cópia do CPF e RG do(s) representante(s) legal (is) indicados na Ficha Individual ou Contrato Social ou Estatuto Social"]
[null,null,"Cópia da conta de luz em casos onde já existem ligações"]
[null,null,"Outorga para uso de água "]
[null,null,"Lincença ambiental caso irrigante"]
[null,null,"Comprovante de Propriedade ou Autorização de Passagem"]
[null,null,"Comprovante do Benefício Tarifário Declarado (Ex. Irrigante, Tarifa Social, Tarifa Produtor Rural, etc)"]
[null,null,"Licença Ambiental, quando houver Intervençoes em vegetaçao, quando a propriedade se encontrar em área de proteção ambiental ou quando exercer atividades que necessitem de autorização (Ex. Agentes Poluentes)"]
[null,null,"Declaração de Carga e Demanda, com indicação de equipamentos que possam causar perturbação (Ex. Motores, Máquina de Solda, etc.). Indicar os equipamentos de partida para motores maiores que 5 CV"]
[null,null,"Documentos do Gerador sem paralelismo (se existir)"]
[null,null,"Termo de Doação da Rede (cargas até 75 kW, tensão de acordo com a rede da distribuidora, com montagem de acordo co ma DIS-NOR-030"]
[null,null,"Formulário DIS-NOR-036 -F-005 (Compromisso de Ocupação de Poste da ELEKTRO em caso d edescida subterrânea)"]
[null,"Pontos de Atenção na Solicitação de Atendimento"]
[null,"Trata-se de único e exclusivo ponto de consumo na propriedade (ramal de ligação único)"]
[null,"As Instalações Internas respeitam os afastamentos minimos de segurança (Figura 14 do Anexo VIII da DIS-NOR-012"]
[]
[null,"Existe gerador proposto na unidade consumidora"]
[null,"Instalações Internas ficam apenas dentro dos limites da propriedade"]
[null,"Licenças Ambientais Internas já obtidas"]
[null,"Se ramal de conexão subterrâneo, obtida autorização da prefeitura para cruzar calçada?"]
[null,"Utilizadas Caixas de Medição Padronizadas pela DIS-ETE-0145"]
[null,"Área Litorânea, utilizadas caixas de fibra ou de alumínio"]
[null,"A Unidade Consumidora encontra-se em área de embargo ou ambiental"]
[null,"Empreendimento de Múltipla Unidade aprovado pelo Município ou Graprohab"]
[null,"Observadas todas as normas da distribuidora, ABNT NBR e Demais normas aplicáveis, inclusive  de segurança?"]

{"sheet":"Confiab","index":4,"n_rows":153,"n_cols":2,"rows_kept":153,"cut":false,"hidden":false,"merged":[[115,1,119,8],[121,1,148,8],[152,1,153,8],[2,1,2,8],[3,1,20,8],[22,1,22,8],[24,1,29,8],[62,1,66,8],[84,1,84,8],[85,1,90,8],[91,1,114,8]]}
[]
[]
[null,"O QUE É REFERÊNCIA ELÉTRICA (CONFIABILIDADE)?"]
[null,"\nPor questões de localização e segurança, sempre deverá indicar referências elétricas (confiabilidades) no projeto. Orientamos o envio, ainda que a UC já esteja ligada!\n\nComo confiabilidade, consideramos chaves seccionadoras, transformadores, religadores, números de medidores, etc. Nos equipamentos,  os números de confiabilidade poderão ser encontrados nos postes, onde os equipamentos estão instalados,  a uma altura aproximada de 4 metros em relação ao solo, com números pintados em preto com o fundo em amarelo, ou então números pintados no tanque dos transformadores na cor preta (Ex. 109315 – 3 – 15). Já os números dos medidores podem ser encontrados no visor dos equipamentos (Ex. 3T05067-1). \n\nTambém poderá ser indicado o número da unidade consumidora (UC), podendo este ser encontrado na fatura de energia enviada (conta). \n\nPor fim, também deverão ser enviadas as coordenadas Latitude e Longitude (decimais), do local da obra. Indicamos que sejam informadas as coordenadas do ponto de entrega (poste de padrão)"]
[]
[]
[]
[]
[]
[]
[]
[]
[]
[]
[]
[]
[]
[]
[]
[]
[]
[]
[null,"Número de Confiabilidade em Equipamentos (Ex. Transformador)"]
[]
[null,"Em equipamentos, o número de confiabilidade (referência elérica) será encontrado no poste onde o equipamento estiver instalado, em altura próxima a 4(quatro) metros em relação ao nível do solo acabado, com números (algarísmos) na cor preta e com o fundo em amarelo. \n\nNota: Em postes com chaves seccionadoras, religadores, chaves à óleo, também será encontrada a mesma configuração."]
[]
[]
[]
[]
[]
[]
[]
[]
[]
[]
[]
[]
[]
[]
[]
[]
[]
[]
[]
[]
[]
[]
[]
[]
[]
[]
[]
[]
[]
[]
[]
[]
[]
[]
[]
[]
[]
[null,"\nTambém poderá ser informado o tombamento (número patrimonial). O tombamento poderá ser encontrado na carcaça dos equipamentos, com números pintados em preto, no seguinte modelo \"Tombamento - Número de Fases - Potência\". Ex. 109876 -3 - 75"]
[]
[]
[]
[]
[]
[]
[]
[]
[]
[]
[]
[]
[]
[]
[]
[]
[]
[]
[]
[]
[]
[null,"O QUE É REFERÊNCIA ELÉTRICA (CONFIABILIDADE)?"]
[null,"\nA Unidade Consumidora (UC) representa o ponto de consumo do cliente, atendido através de uma medição. Esse código poderá ser encontrado na fatura de energia (conta) enviada mensalmente pela distribuidora. O código poderá ser identificado conforme, abaixo, através do campo \"Seu Código\":"]
[]
[]
[]
[]
[]
[]
[]
[]
[]
[]
[]
[]
[]
[]
[]
[]
[]
[]
[]
[]
[]
[]
[]
[]
[]
[]
[]
[]
[]
[null,"Quanto ao número do medidor, também poderá ser encontrado na fatura de energia, através do campo Medidor  ou no visor do equipamento, instalado no ponto de consumo do cliente, conforme abaixo: \n\nNota: Números de medidores ficticios."]
[]
[]
[]
[]
[]
[]
[]
[]
[]
[]
[]
[]
[]
[]
[]
[]
[]
[]
[]
[]
[]
[]
[]
[]
[]
[]
[]
[]
[]
[]
[]
[]
[]
[]
[]
[]
[null,"Solicitação de Orçamento de Conexão - NEOENERGIA ELEKTRO"]

{"sheet":"Backup","index":5,"n_rows":92,"n_cols":78,"rows_kept":92,"cut":false,"hidden":false,"merged":[[88,57,90,57],[91,2,94,83],[71,18,74,67],[59,42,61,42],[65,36,68,48],[2,2,2,18],[2,19,2,83],[6,2,9,83],[11,7,54,8],[11,77,54,78],[15,39,17,45],[19,39,29,45],[33,43,38,49],[14,14,19,35],[39,54,54,59],[42,33,44,39],[42,45,44,51],[49,43,54,51],[52,33,54,41],[39,26,54,30]]}
[]
[]
[null,null,null,null,null,null,null,null,null,null,null,null,null,null,null,null,null,null,null,"SOLICITAÇÃO DE ORÇAMENTO DE CONEXÃO"]
[]
[]
[]
[null,null,"PLANTA SITUAÇÃO/LOCALIZAÇÃO - SOLICITAÇÕES URBANAS"]
[]
[]
[]
[]
[null,null,null,null,null,null,null,"Anotar Nome da Rua",null,null,null,null,null,null,null,null,null,null,null,null,null,null,null,null,null,null,null,null,null,null,null,null,null,null,null,null,null,null,null,null,null,null,null,null,null,null,null,null,null,null,null,null,null,null,null,null,null,null,null,null,null,null,null,null,null,null,null,null,null,null,null,null,null,null,null,null,null,"Anotar Nome da Rua"]
[]
[]
[null,null,null,null,null,null,null,null,null,null,null,null,null,null,"Nota: Todos os afastamentos indicados em relação ao poste, são em metros."]
[null,null,null,null,null,null,null,null,null,null,null,null,null,null,null,null,null,null,null,null,null,null,null,null,null,null,null,null,null,null,null,null,null,null,null,null,null,null,null,"Edificação"]
[]
[]
[]
[null,null,null,null,null,null,null,null,null,null,null,null,null,null,null,null,null,null,null,null,null,null,null,null,null,null,null,null,null,null,null,null,null,null,null,null,null,null,null,"Anotar Finalidade"]
[]
[]
[]
[]
[]
[]
[]
[]
[]
[]
[]
[]
[]
[null,null,null,null,null,null,null,null,null,null,null,null,null,null,null,null,null,null,null,null,null,null,null,null,null,null,null,null,null,null,null,null,null,null,null,null,null,null,null,null,null,null,null,"Anotar distância (M)"]
[]
[]
[]
[]
[]
[null,null,null,null,null,null,null,null,null,null,null,null,null,null,null,null,null,null,null,null,null,null,null,null,null,null,"Anotar UC ou Medidor do Vizinho",null,null,null,null,null,null,null,null,null,null,null,null,null,null,null,null,null,null,null,null,null,null,null,null,null,null,null,"Anotar UC ou Medidor do Vizinho"]
[]
[]
[null,null,null,null,null,null,null,null,null,null,null,null,null,null,null,null,null,null,null,null,null,null,null,null,null,null,null,null,null,null,null,null,null,"distância (M)",null,null,null,null,null,null,null,null,null,null,null,"distância (M)"]
[]
[]
[]
[]
[]
[]
[null,null,null,null,null,null,null,null,null,null,null,null,null,null,null,null,null,null,null,null,null,null,null,null,null,null,null,null,null,null,null,null,null,null,null,null,null,null,null,null,null,null,null,"Coordenada Poste"]
[]
[]
[null,null,null,null,null,null,null,null,null,null,null,null,null,null,null,null,null,null,null,null,null,null,null,null,null,null,null,null,null,null,null,null,null,"Distância (M)"]
[]
[]
[]
[]
[]
[]
[null,null,null,null,null,null,null,null,null,null,null,null,null,null,null,null,null,null,null,null,null,null,null,null,null,null,null,null,null,null,null,null,null,null,null,null,null,null,null,null,null,null,1]
[]
[]
[]
[]
[]
[null,null,null,null,null,null,null,null,null,null,null,null,null,null,null,null,null,null,null,null,null,null,null,null,null,null,null,null,null,null,null,null,null,null,null,null,"INTERLIGAÇÃO ELEKTRO"]
[]
[]
[]
[]
[]
[null,null,null,null,null,null,null,null,null,null,null,null,null,null,null,null,null,null,{"$f":"CONCATENATE('Dados Gerais'!F23,\",\",\" \",\"Nº.\",\" \",'Dados Gerais'!P23)","v":", Nº. "}]
[]
[]
[]
[]
[]
[]
[]
[]
[]
[]
[]
[]
[]
[]
[]
[]
[]
[]
[]
[null,null,"INSERIR MAPA DE LOCALIZAÇÃO - SOLICITAÇÕES URBANAS E RURAIS (EXEMPLO - PRINT DE IMAGEM DO GOOGLE MAPAS)"]

{"sheet":"Planilha1","index":6,"n_rows":14,"n_cols":17,"rows_kept":14,"cut":false,"hidden":true,"merged":[]}
[null,null,"Tipo de Projetos",null,"Tensão Primária","Tensão Secundária",null,"Grupo Tarifário",null,null,null,"Tipo de Conexão",null,"Ramal de Conexão",null,null,"Tensão Conexão"]
[null,null,"Transformador Particular em Poste - Urbano",null,"13,8 kV","127 V",null,"Grupo A",null,null,null,"Monofásico",null,"Aéreo",null,null,"13,8 kV"]
[null,null,"Transformador Particular em Poste - Rural",null,"13,2 kV","220/127 V",null,"Grupo B Optante",null,null,null,"Bifásico",null,"Subterrâneo",null,null,"13,2 kV"]
[null,null,"Cabine Primária",null,"34,5 kV","380/220 V",null,"Grupo B (Baixa Tensão)",null,null,null,"Trifásico",null,null,null,null,"34,5 kV"]
[null,null,"Loteamento/Desmembramento Particular - Rede Aérea",null,"69 kV","440/254 V",null,"Grupo A (livre)",null,null,null,null,null,null,null,null,"220/127V"]
[null,null,"Loteamento/Desmembramento Particular - Rede Subterrânea",null,"138 kV",null,null,"Não se Aplica",null,null,null,null,null,null,null,null,"380/220V"]
[null,null,"Medição Agrupada/Coletiva",null,null,null,null,null,null,null,null,null,null,null,null,null,"127V"]
[null,null,"Iluminação Pública/Condomínios",null,null,null,null,null,null,null,null,null,null,null,null,null,"69 kV"]
[null,null,"Remoção de Rede",null,null,null,null,null,null,null,null,null,null,null,null,null,"138 kV"]
[null,null,"Rede de Distribuição"]
[null,null,"Compartilhamento de Infraestrutura"]
[null,null,"Paralelismo Contínuo"]
[null,null,"Paralelismo Momentâneo"]
[null,null,"Autoprodutor"]